fUST/lending_fUST_20251113
["ID","MTS","AMOUNT","RATE_DAILY","PERIOD"]
[393860538,1763045505090,-500.0,0.00043835,120]
[393860539,1763045505099,-500.0,0.00043835,120]
[393860540,1763045505109,-436.39578458,0.00043835,120]
[393860541,1763045505119,-194.62243,0.00043835,120]
[393860542,1763045505129,-310.46584688,0.00043835,120]
[393860543,1763045505138,-558.63,0.00043835,120]
[393860544,1763045505148,-395.78955859,0.00043835,120]
[393860545,1763045505157,-463.41794701,0.00043835,120]
[393860546,1763045505167,-500.0,0.00043835,120]
[393860547,1763045505177,-494.09147896,0.00043835,120]
[393860548,1763045505187,-385.67840224,0.00043835,120]
[393860549,1763045505196,-185.63737806,0.00043835,120]
[393860550,1763045505207,-395.41453726,0.00043835,120]
[393860551,1763045505216,-339.72450477,0.00043835,120]
[393860552,1763045505226,-500.0,0.00043835,120]
[393860553,1763045505235,-259.39729958,0.00043835,120]
[393860554,1763045505246,-396.6854998,0.00043835,120]
[393860555,1763045505256,-500.0,0.00043835,120]
[393860556,1763045505265,-405.33351942,0.00043835,120]
[393860557,1763045505278,-500.0,0.00043835,120]
[393860558,1763045505288,-500.0,0.00043835,120]
[393860559,1763045505299,-169.09826978,0.00043835,120]
[393860560,1763045505308,-500.0,0.00043835,120]
[393860561,1763045505317,-500.0,0.00043835,120]
[393860562,1763045505327,-208.7329193,0.00043835,120]
[393860563,1763045505338,-500.0,0.00043835,120]
[393860564,1763045505356,-500.0,0.00043835,120]
[393860565,1763045505366,-215.55546086,0.00043835,120]
[393860566,1763045505376,-500.0,0.00043835,120]
[393860567,1763045505386,-500.0,0.00043835,120]
[393860568,1763045505397,-500.0,0.00043835,120]
[393860569,1763045505406,-387.81338928,0.00043835,120]
[393860570,1763045505416,-500.0,0.00043835,120]
[393860571,1763045505425,-484.01423901,0.00043835,120]
[393860572,1763045505435,-172.2750575,0.00043835,120]
[393860573,1763045505445,-406.05165499,0.00043835,120]
[393860574,1763045505454,-251.13729662,0.00043835,120]
[393860575,1763045505464,-500.0,0.00043835,120]
[393860576,1763045505475,-500.0,0.00043835,120]
[393860577,1763045505484,-633.9,0.00043835,120]
[393860578,1763045505494,-500.0,0.00043835,120]
[393860579,1763045505503,-323.07227051,0.00043835,120]
[393860580,1763045505513,-500.0,0.00043835,120]
[393860581,1763045505523,-519.29,0.00043835,2]
[393860582,1763045505532,-500.0,0.00043835,120]
[393860583,1763045505541,-500.0,0.00043835,120]
[393860584,1763045505550,-500.0,0.00043835,120]
[393860585,1763045505560,-500.0,0.00043835,120]
[393860586,1763045505571,-500.0,0.00043835,120]
[393860587,1763045505582,-500.0,0.00043835,120]
[393860588,1763045505598,-500.0,0.00043835,120]
[393860589,1763045505609,-500.0,0.00043835,120]
[393860590,1763045505619,-780.21,0.00043835,120]
[393860591,1763045505629,-11245.95,0.00043835,3]
[393860592,1763045505639,-500.0,0.00043835,120]
[393860593,1763045505649,-372.33262348,0.00043835,120]
[393860594,1763045505659,-640.4,0.00043835,120]
[393860595,1763045505669,-462.69774949,0.00043835,120]
[393860596,1763045505679,-374.42401255,0.00043835,120]
[393860597,1763045505690,-308.82891773,0.00043835,120]
[393860598,1763045505700,-500.0,0.00043835,120]
[393860599,1763045505710,-500.0,0.00043835,120]
[393860600,1763045505719,-470.40982034,0.00043835,120]
[393860601,1763045505729,-256.76313735,0.00043835,120]
[393860602,1763045505738,-500.0,0.00043835,120]
[393860603,1763045505748,-500.0,0.00043835,120]
[393860604,1763045505758,-418.9223658,0.00043835,120]
[393860605,1763045505767,-197.29500969,0.00043835,120]
[393860606,1763045505777,-408.43285201,0.00043835,120]
[393860607,1763045505788,-492.46968448,0.00043835,120]
[393860608,1763045505797,-500.0,0.00043835,120]
[393860609,1763045505807,-500.0,0.00043835,120]
[393860610,1763045505817,-500.0,0.00043835,120]
[393860611,1763045505827,-296.5713927,0.00043835,120]
[393860612,1763045505836,-224.95046767,0.00043835,120]
[393860613,1763045505851,-377.30870986,0.00043835,120]
[393860614,1763045505860,-500.0,0.00043835,120]
[393860615,1763045505871,-500.0,0.00043835,120]
[393860616,1763045505881,-500.0,0.00043835,120]
[393860617,1763045505891,-576.81197337,0.00043835,120]
[393860618,1763045505900,-500.0,0.00043835,120]
[393860619,1763045505910,-685.45,0.00043835,120]
[393860620,1763045505919,-231.81045776,0.00043835,120]
[393860621,1763045505928,-350.13521663,0.00043835,120]
[393860622,1763045505939,-500.0,0.00043835,120]
[393860623,1763045505948,-500.0,0.00043835,120]
[393860624,1763045505957,-373.44165733,0.00043835,120]
[393860625,1763045505967,-500.0,0.00043835,120]
[393860626,1763045505977,-500.0,0.00043835,120]
[393860627,1763045505986,-201.98985551,0.00043835,120]
[393860628,1763045505996,-500.0,0.00043835,120]
[393860629,1763045506005,-247.17809107,0.00043835,120]
[393860630,1763045506015,-500.0,0.00043835,3]
[393860631,1763045506024,-500.0,0.00043835,120]
[393860632,1763045506034,-496.62962144,0.00043835,120]
[393860633,1763045506044,-500.0,0.00043835,120]
[393860634,1763045506055,-213.15597479,0.00043835,120]
[393860635,1763045506066,-500.0,0.00043835,120]
[393860636,1763045506079,-332.08307202,0.00043835,120]
[393860637,1763045506092,-500.0,0.00043835,120]
[393860638,1763045506107,-341.30672148,0.00043835,120]
[393860639,1763045506118,-202.06454814,0.00043835,120]
[393860640,1763045506128,-300.52662484,0.00043835,120]
[393860641,1763045506139,-500.0,0.00043835,120]
[393860642,1763045506150,-480.13928267,0.00043835,120]
[393860643,1763045506159,-500.0,0.00043835,120]
[393860644,1763045506169,-380.44570446,0.00043835,120]
[393860645,1763045506179,-500.0,0.00043835,30]
[393860646,1763045506190,-500.0,0.00043835,120]
[393860647,1763045506201,-500.0,0.00043835,120]
[393860648,1763045506211,-327.96935272,0.00043835,120]
[393860649,1763045506220,-598.06,0.00043835,120]
[393860650,1763045506231,-302.84316289,0.00043835,120]
[393860651,1763045506241,-310.05854191,0.00043835,120]
[393860652,1763045506255,-179.41929419,0.00043835,100]
[393860653,1763045506265,-479.53916181,0.00043835,120]
[393860654,1763045506275,-419.45329007,0.00043835,120]
[393860655,1763045506286,-567.12,0.00043835,120]
[393860656,1763045506296,-367.74024232,0.00043835,120]
[393860657,1763045506305,-779.28,0.00043835,120]
[393860658,1763045506315,-248.97319509,0.00043835,120]
[393860659,1763045506326,-500.0,0.00043835,120]
[393860660,1763045506335,-500.0,0.00043835,120]
[393860661,1763045506352,-500.0,0.00043835,120]
[393860662,1763045506362,-500.0,0.00043835,120]
[393860663,1763045506371,-217.13467656,0.00043835,120]
[393860664,1763045506381,-232.15645304,0.00043835,120]
[393860665,1763045506391,-416.54887214,0.00043835,120]
[393860666,1763045506403,-253.82041033,0.00043835,120]
[393860667,1763045506414,-850.14,0.00043835,120]
[393860668,1763045506423,-793.5,0.00043835,120]
[393860669,1763045506439,-178.82981054,0.00043835,120]
[393860670,1763045506451,-500.0,0.00043835,120]
[393860671,1763045506461,-566.87,0.00043835,120]
[393860672,1763045506472,-500.0,0.00043835,120]
[393860673,1763045506483,-500.0,0.00043835,120]
[393860674,1763045506495,-500.0,0.00043835,120]
[393860675,1763045506506,-460.0,0.00043835,120]
[393860676,1763045506516,-500.0,0.00043835,21]
[393860677,1763045506526,-631.85,0.00043835,120]
[393860678,1763045506538,-500.0,0.00043835,120]
[393860679,1763045506549,-394.75347942,0.00043835,120]
[393860680,1763045506560,-782.59,0.00043835,120]
[393860681,1763045506570,-826.01,0.00043835,120]
[393860682,1763045506582,-555.43,0.00043835,120]
[393860683,1763045506599,-500.0,0.00043835,120]
[393860684,1763045506608,-721.96,0.00043835,120]
[393860685,1763045506618,-500.0,0.00043835,120]
[393860686,1763045506627,-469.34103288,0.00043835,120]
[393860687,1763045506637,-500.0,0.00043835,120]
[393860688,1763045506646,-387.96364349,0.00043835,120]
[393860689,1763045506656,-415.27330909,0.00043835,120]
[393860690,1763045506665,-500.0,0.00043835,120]
[393860691,1763045506675,-500.0,0.00043835,120]
[393860692,1763045506685,-434.49139621,0.00043835,120]
[393860693,1763045506695,-408.32676093,0.00043835,120]
[393860694,1763045506704,-500.0,0.00043835,120]
[393860695,1763045506712,-500.0,0.00043835,120]
[393860696,1763045506723,-315.78542662,0.00043835,120]
[393860697,1763045506732,-500.0,0.00043835,120]
[393860698,1763045506742,-389.39058057,0.00043835,120]
[393860699,1763045506752,-500.0,0.00043835,120]
[393860700,1763045506762,-489.99119829,0.00043835,120]
[393860701,1763045506772,-500.0,0.00043835,120]
[393860702,1763045506782,-500.0,0.00043835,120]
[393860703,1763045506791,-500.0,0.00043835,120]
[393860704,1763045506800,-500.0,0.00043835,120]
[393860705,1763045506809,-419.42736324,0.00043835,120]
[393860706,1763045506819,-500.0,0.00043835,120]
[393860707,1763045506829,-195.6716829,0.00043835,120]
[393860708,1763045506839,-500.0,0.00043835,120]
[393860709,1763045506853,-500.0,0.00043835,120]
[393860710,1763045506863,-500.0,0.00043835,120]
[393860711,1763045506873,-206.88644683,0.00043835,120]
[393860712,1763045506884,-913.41,0.00043835,120]
[393860713,1763045506895,-397.45871435,0.00043835,120]
[393860714,1763045506905,-495.97064784,0.00043835,120]
[393860715,1763045506915,-500.0,0.00043835,120]
[393860716,1763045506924,-579.47,0.00043835,120]
[393860717,1763045506933,-500.0,0.00043835,120]
[393860718,1763045506943,-500.0,0.00043835,120]
[393860719,1763045506952,-300.82043207,0.00043835,120]
[393860720,1763045506962,-307.33072532,0.00043835,120]
[393860721,1763045506972,-500.0,0.00043835,120]
[393860722,1763045506982,-500.0,0.00043835,120]
[393860723,1763045506992,-500.0,0.00043835,120]
[393860724,1763045507002,-500.0,0.00043835,120]
[393860725,1763045507011,-371.88633161,0.00043835,120]
[393860726,1763045507021,-426.99800988,0.00043835,120]
[393860727,1763045507031,-500.0,0.00043835,120]
[393860728,1763045507040,-427.14553794,0.00043835,120]
[393860729,1763045507050,-234.39257465,0.00043835,120]
[393860730,1763045507060,-299.05599992,0.00043835,120]
[393860731,1763045507070,-354.11441804,0.00043835,120]
[393860732,1763045507079,-193.53706196,0.00043835,120]
[393860733,1763045507088,-684.28,0.00043835,120]
[393860734,1763045507106,-500.0,0.00043835,120]
[393860735,1763045507116,-500.0,0.00043835,120]
[393860736,1763045507277,-221.50190868,0.00043835,120]
[393860737,1763045507287,-235.56794442,0.00043835,120]
[393860738,1763045507297,-500.0,0.00043835,120]
[393860739,1763045507308,-500.0,0.00043835,120]
[393860740,1763045507319,-354.04988611,0.00043835,120]
[393860741,1763045507329,-624.24,0.00043835,2]
[393860742,1763045507339,-1000.0,0.00043835,7]
[393860743,1763045507356,-480.0,0.00043835,120]
[393860744,1763045507369,-500.0,0.00043835,120]
[393860745,1763045507380,-375.7661312,0.00043835,120]
[393860746,1763045507391,-194.62126127,0.00043835,120]
[393860747,1763045507402,-770.91,0.00043835,120]
[393860748,1763045507413,-303.10785081,0.00043835,120]
[393860749,1763045507423,-353.79920909,0.00043835,120]
[393860750,1763045507433,-500.0,0.00043835,120]
[393860751,1763045507444,-500.0,0.00043835,120]
[393860752,1763045507454,-480.0,0.00043835,120]
[393860753,1763045507464,-3457.67,0.00043835,120]
[393860754,1763045507473,-500.0,0.00043835,120]
[393860755,1763045507483,-263.53424056,0.00043835,120]
[393860756,1763045507493,-500.0,0.00043835,120]
[393860757,1763045507502,-426.97084108,0.00043835,120]
[393860758,1763045507512,-1457.38,0.00043835,120]
[393860759,1763045507522,-797.92,0.00043835,120]
[393860760,1763045507531,-500.0,0.00043835,120]
[393860761,1763045507541,-500.0,0.00043835,120]
[393860762,1763045507550,-412.22769198,0.00043835,120]
[393860763,1763045507560,-177.5453823,0.00043835,120]
[393860764,1763045507571,-500.0,0.00043835,120]
[393860765,1763045507581,-483.84316371,0.00043835,120]
[393860766,1763045507596,-294.42584774,0.00043835,120]
[393860767,1763045507606,-265.52931695,0.00043835,120]
[393860768,1763045507616,-500.0,0.00043835,120]
[393860769,1763045507626,-273.12722705,0.00043835,120]
[393860770,1763045507636,-630.0,0.00043835,120]
[393860771,1763045507646,-500.0,0.00043835,120]
[393860772,1763045507656,-500.0,0.00043835,120]
[393860773,1763045507666,-500.0,0.00043835,120]
[393860774,1763045507676,-184.18707144,0.00043835,120]
[393860775,1763045507686,-461.2485582,0.00043835,120]
[393860776,1763045507696,-367.18385589,0.00043835,120]
[393860777,1763045507705,-293.29387274,0.00043835,120]
[393860778,1763045507715,-500.0,0.00043835,120]
[393860779,1763045507725,-494.72215429,0.00043835,120]
[393860780,1763045507735,-500.0,0.00043835,120]
[393860781,1763045507744,-500.0,0.00043835,120]
[393860782,1763045507754,-231.75298192,0.00043835,120]
[393860783,1763045507763,-500.0,0.00043835,120]
[393860784,1763045507773,-500.0,0.00043835,120]
[393860785,1763045507782,-1748.23,0.00043835,120]
[393860786,1763045507793,-500.0,0.00043835,120]
[393860787,1763045507802,-421.52518161,0.00043835,120]
[393860788,1763045507812,-222.97836362,0.00043835,120]
[393860789,1763045507821,-500.0,0.00043835,120]
[393860790,1763045507830,-500.0,0.00043835,120]
[393860791,1763045507840,-299.57481892,0.00043835,120]
[393860792,1763045507855,-231.62020494,0.00043835,120]
[393860793,1763045507865,-212.56409202,0.00043835,120]
[393860794,1763045507875,-397.37346179,0.00043835,60]
[393860795,1763045507886,-871.35,0.00043835,120]
[393860796,1763045507895,-184.68754335,0.00043835,120]
[393860797,1763045507906,-500.0,0.00043835,120]
[393860798,1763045507915,-500.0,0.00043835,120]
[393860799,1763045507924,-417.49737715,0.00043835,120]
[393860800,1763045507934,-854.46,0.00043835,120]
[393860801,1763045507943,-452.72449376,0.00043835,120]
[393860802,1763045507952,-226.85968292,0.00043835,10]
[393860803,1763045507962,-441.79085967,0.00043835,120]
[393860804,1763045507971,-500.0,0.00043835,120]
[393860805,1763045507980,-500.0,0.00043835,120]
[393860806,1763045507991,-591.42,0.00043835,120]
[393860807,1763045508000,-614.87,0.00043835,120]
[393860808,1763045508009,-500.0,0.00043835,120]
[393860809,1763045508019,-273.51866982,0.00043835,120]
[393860810,1763045508028,-500.0,0.00043835,120]
[393860811,1763045508037,-473.8082533,0.00043835,120]
[393860812,1763045508047,-500.0,0.00043835,120]
[393860813,1763045508057,-500.0,0.00043835,120]
[393860814,1763045508066,-375.0810147,0.00043835,120]
[393860815,1763045508077,-500.0,0.00043835,120]
[393860816,1763045508087,-279.25746021,0.00043835,120]
[393860817,1763045508102,-817.21,0.00043835,120]
[393860818,1763045508111,-405.3913905,0.00043835,120]
[393860819,1763045508120,-342.65539098,0.00043835,120]
[393860820,1763045508130,-500.0,0.00043835,120]
[393860821,1763045508139,-160.22092384,0.00043835,120]
[393860822,1763045508149,-500.0,0.00043835,120]
[393860823,1763045508158,-409.2627349,0.00043835,120]
[393860824,1763045508168,-190.89926962,0.00043835,120]
[393860825,1763045508179,-500.0,0.00043835,120]
[393860826,1763045508188,-371.20690506,0.00043835,120]
[393860827,1763045508198,-290.45331572,0.00043835,120]
[393860828,1763045508207,-269.1429141,0.00043835,120]
[393860829,1763045508217,-500.0,0.00043835,120]
[393860830,1763045508227,-500.0,0.00043835,120]
[393860831,1763045508236,-699.0,0.00043835,120]
[393860832,1763045508249,-500.0,0.00043835,120]
[393860833,1763045508260,-585.98,0.00043835,120]
[393860834,1763045508271,-482.24254408,0.00043835,120]
[393860835,1763045508283,-223.8946208,0.00043835,120]
[393860836,1763045508294,-260.0761562,0.00043835,120]
[393860837,1763045508304,-500.0,0.00043835,120]
[393860838,1763045508314,-500.0,0.00043835,120]
[393860839,1763045508324,-500.0,0.00043835,120]
[393860840,1763045508334,-500.0,0.00043835,120]
[393860841,1763045508349,-161.79359675,0.00043873,10]
[393860842,1763045508359,-300.55067029,0.00043873,10]
[393860843,1763045508368,-633.08843994,0.00043873,10]
[393860844,1763045508376,-500.0,0.00043873,10]
[393860845,1763045508386,-500.0,0.00044109,120]
[393860846,1763045508395,-500.0,0.00044109,120]
[393860847,1763045508404,-500.0,0.00044109,120]
[393860848,1763045508413,-544.73,0.00044109,120]
[393860849,1763045508423,-500.0,0.00044109,120]
[393860850,1763045508432,-544.07,0.00044109,120]
[393860851,1763045508441,-500.0,0.00044109,120]
[393860852,1763045508451,-500.0,0.00044109,120]
[393860853,1763045508461,-500.0,0.00044109,120]
[393860854,1763045508470,-500.0,0.00044109,120]
[393860855,1763045508479,-500.0,0.00044109,120]
[393860856,1763045508488,-500.0,0.00044109,120]
[393860857,1763045508497,-1000.0,0.00044109,2]
[393860858,1763045508507,-500.0,0.00044109,120]
[393860859,1763045508516,-608.84,0.00044109,120]
[393860860,1763045508525,-500.0,0.00044109,120]
[393860861,1763045508535,-500.0,0.00044109,120]
[393860862,1763045508544,-500.0,0.00044109,120]
[393860863,1763045508554,-500.0,0.00044109,120]
[393860864,1763045508563,-500.0,0.00044109,120]
[393860865,1763045508573,-500.0,0.00044109,120]
[393860866,1763045508582,-565.99,0.00044109,120]
[393860867,1763045508596,-500.0,0.00044109,120]
[393860868,1763045508605,-500.0,0.00044109,120]
[393860869,1763045508614,-500.0,0.00044109,120]
[393860870,1763045508624,-500.0,0.00044109,120]
[393860871,1763045508634,-500.0,0.00044109,120]
[393860872,1763045508643,-500.0,0.00044109,120]
[393860873,1763045508654,-500.0,0.00044109,120]
[393860874,1763045508663,-500.0,0.00044109,120]
[393860875,1763045508672,-500.0,0.00044109,120]
[393860876,1763045508681,-200.0,0.00044109,120]
[393860877,1763045508691,-500.0,0.00044109,120]
[393860878,1763045508700,-500.0,0.00044109,120]
[393860879,1763045508710,-500.0,0.00044109,120]
[393860880,1763045508719,-500.0,0.00044109,120]
[393860881,1763045508729,-1000.0,0.00044109,120]
[393860882,1763045508739,-500.0,0.00044109,120]
[393860883,1763045508748,-500.0,0.00044109,120]
[393860884,1763045508758,-500.0,0.00044109,120]
[393860885,1763045508768,-732.35,0.00044109,120]
[393860886,1763045508778,-500.0,0.00044109,120]
[393860887,1763045508788,-500.0,0.00044109,120]
[393860888,1763045508798,-500.0,0.00044109,120]
[393860889,1763045508808,-500.0,0.00044109,120]
[393860890,1763045508818,-500.0,0.00044109,120]
[393860891,1763045508828,-570.02,0.00044109,120]
[393860892,1763045508837,-502.75,0.00044109,120]
[393860893,1763045508853,-500.0,0.00044109,120]
[393860894,1763045508863,-557.50787883,0.00044109,120]
[393860895,1763045508872,-500.0,0.00044109,120]
[393860896,1763045508883,-500.0,0.00044109,120]
[393860897,1763045508892,-500.0,0.00044109,120]
[393860898,1763045508901,-500.0,0.00044109,120]
[393860899,1763045508911,-585.51,0.00044109,120]
[393860900,1763045508921,-500.0,0.00044109,120]
[393860901,1763045508930,-500.0,0.00044109,120]
[393860902,1763045508940,-500.0,0.00044109,120]
[393860903,1763045508950,-500.0,0.00044109,120]
[393860904,1763045508960,-1000.0,0.00044109,2]
[393860905,1763045508969,-500.0,0.00044109,120]
[393860906,1763045508979,-500.0,0.00044109,120]
[393860907,1763045508989,-500.0,0.00044109,120]
[393860908,1763045508999,-500.0,0.00044109,120]
[393860909,1763045509010,-500.0,0.00044109,120]
[393860910,1763045509019,-500.0,0.00044109,120]
[393860911,1763045509030,-500.0,0.00044109,120]
[393860912,1763045509040,-500.0,0.00044109,120]
[393860913,1763045509049,-500.0,0.00044109,120]
[393860914,1763045509060,-514.82,0.00044109,120]
[393860915,1763045509070,-500.0,0.00044109,120]
[393860916,1763045509079,-326.40405101,0.00044109,120]
[393860917,1763045509091,-500.0,0.00044109,120]
[393860918,1763045509106,-500.0,0.00044109,120]
[393860919,1763045509116,-500.0,0.00044109,120]
[393860920,1763045509126,-500.0,0.00044109,120]
[393860921,1763045509136,-500.0,0.00044109,120]
[393860922,1763045509147,-577.09,0.00044109,120]
[393860923,1763045509157,-500.0,0.00044109,120]
[393860924,1763045509167,-834.01,0.00044109,120]
[393860925,1763045509179,-500.0,0.00044109,120]
[393860926,1763045509189,-969.65,0.00044109,120]
[393860927,1763045509198,-387.01428126,0.00044109,120]
[393860928,1763045509208,-1066.87,0.00044109,7]
[393860929,1763045509217,-1264.73,0.00044109,30]
[393860930,1763045509227,-500.0,0.00044109,120]
[393860931,1763045509236,-787.85,0.00044109,120]
[393860932,1763045509251,-552.73,0.00044109,120]
[393860933,1763045509261,-2599.22,0.00044109,2]
[393860934,1763045509271,-500.0,0.00044109,120]
[393860935,1763045509280,-500.0,0.00044109,120]
[393860936,1763045509291,-500.0,0.00044109,120]
[393860937,1763045509300,-500.0,0.00044109,120]
[393860938,1763045509310,-736.82,0.00044109,120]
[393860939,1763045509319,-500.0,0.00044109,120]
[393860940,1763045509329,-500.0,0.00044109,120]
[393860941,1763045509339,-512.47,0.00044109,120]
[393860942,1763045509355,-500.0,0.00044109,120]
[393860943,1763045509364,-500.0,0.00044109,120]
[393860944,1763045509374,-534.45,0.00044109,120]
[393860945,1763045509383,-500.0,0.00044109,120]
[393860946,1763045509392,-500.0,0.00044109,120]
[393860947,1763045509402,-500.0,0.00044109,120]
[393860948,1763045509411,-500.0,0.00044109,120]
[393860949,1763045509421,-500.0,0.00044109,120]
[393860950,1763045509430,-500.0,0.00044109,120]
[393860951,1763045509440,-500.0,0.00044109,120]
[393860952,1763045509449,-539.92,0.00044109,120]
[393860953,1763045509459,-500.0,0.00044109,120]
[393860954,1763045509470,-500.0,0.00044109,120]
[393860955,1763045509479,-500.0,0.00044109,120]
[393860956,1763045509489,-500.0,0.00044109,2]
[393860957,1763045509498,-500.0,0.00044109,120]
[393860958,1763045509508,-500.0,0.00044109,120]
[393860959,1763045509517,-500.0,0.00044109,120]
[393860960,1763045509527,-500.0,0.00044109,120]
[393860961,1763045509536,-500.0,0.00044109,120]
[393860962,1763045509546,-500.0,0.00044109,120]
[393860963,1763045509555,-500.0,0.00044109,120]
[393860964,1763045509565,-558.63,0.00044109,120]
[393860965,1763045509575,-500.0,0.00044109,120]
[393860966,1763045509584,-425.35419422,0.00044109,120]
[393860967,1763045509601,-500.0,0.00044109,120]
[393860968,1763045509611,-500.0,0.00044109,120]
[393860969,1763045509771,-500.0,0.00044109,120]
[393860970,1763045509782,-500.0,0.00044109,120]
[393860971,1763045509793,-500.0,0.00044109,120]
[393860972,1763045509803,-500.0,0.00044109,120]
[393860973,1763045509814,-500.0,0.00044109,120]
[393860974,1763045509824,-500.0,0.00044109,120]
[393860975,1763045509834,-500.0,0.00044109,120]
[393860976,1763045509850,-500.0,0.00044109,120]
[393860977,1763045509860,-500.0,0.00044109,120]
[393860978,1763045509870,-500.0,0.00044109,120]
[393860979,1763045509880,-500.0,0.00044109,120]
[393860980,1763045509890,-633.9,0.00044109,120]
[393860981,1763045509899,-500.0,0.00044109,120]
[393860982,1763045509909,-500.0,0.00044109,120]
[393860983,1763045509919,-519.29,0.00044109,2]
[393860984,1763045509929,-500.0,0.00044109,120]
[393860985,1763045509938,-500.0,0.00044109,120]
[393860986,1763045509948,-500.0,0.00044109,120]
[393860987,1763045509958,-500.0,0.00044109,120]
[393860988,1763045509967,-500.0,0.00044109,120]
[393860989,1763045509977,-500.0,0.00044109,120]
[393860990,1763045509986,-500.0,0.00044109,120]
[393860991,1763045509995,-780.21,0.00044109,120]
[393860992,1763045510006,-11245.95,0.00044109,3]
[393860993,1763045510017,-500.0,0.00044109,120]
[393860994,1763045510026,-640.4,0.00044109,120]
[393860995,1763045510036,-524.62826526,0.00044109,120]
[393860996,1763045510046,-500.0,0.00044109,120]
[393860997,1763045510056,-500.0,0.00044109,120]
[393860998,1763045510066,-500.0,0.00044109,120]
[393860999,1763045510076,-500.0,0.00044109,120]
[393861000,1763045510086,-500.0,0.00044109,120]
[393861001,1763045510100,-500.0,0.00044109,120]
[393861002,1763045510110,-500.0,0.00044109,120]
[393861003,1763045510120,-500.0,0.00044109,120]
[393861004,1763045510129,-500.0,0.00044109,120]
[393861005,1763045510138,-500.0,0.00044109,120]
[393861006,1763045510148,-685.45,0.00044109,120]
[393861007,1763045510159,-500.0,0.00044109,120]
[393861008,1763045510169,-500.0,0.00044109,120]
[393861009,1763045510179,-500.0,0.00044109,120]
[393861010,1763045510188,-500.0,0.00044109,120]
[393861011,1763045510197,-500.0,0.00044109,120]
[393861012,1763045510207,-500.0,0.00044109,3]
[393861013,1763045510217,-500.0,0.00044109,120]
[393861014,1763045510227,-500.0,0.00044109,120]
[393861015,1763045510236,-500.0,0.00044109,120]
[393861016,1763045510247,-500.0,0.00044109,120]
[393861017,1763045510257,-500.0,0.00044109,120]
[393861018,1763045510267,-500.0,0.00044109,120]
[393861019,1763045510281,-500.0,0.00044109,30]
[393861020,1763045510292,-500.0,0.00044109,120]
[393861021,1763045510301,-500.0,0.00044109,120]
[393861022,1763045510311,-598.06,0.00044109,120]
[393861023,1763045510320,-567.12,0.00044109,120]
[393861024,1763045510330,-779.28,0.00044109,120]
[393861025,1763045510340,-500.0,0.00044109,120]
[393861026,1763045510354,-500.0,0.00044109,120]
[393861027,1763045510364,-500.0,0.00044109,120]
[393861028,1763045510373,-500.0,0.00044109,120]
[393861029,1763045510382,-850.14,0.00044109,120]
[393861030,1763045510391,-793.5,0.00044109,120]
[393861031,1763045510402,-500.0,0.00044109,120]
[393861032,1763045510412,-566.87,0.00044109,120]
[393861033,1763045510422,-500.0,0.00044109,120]
[393861034,1763045510432,-500.0,0.00044109,120]
[393861035,1763045510442,-500.0,0.00044109,120]
[393861036,1763045510452,-500.0,0.00044109,21]
[393861037,1763045510462,-631.85,0.00044109,120]